bitfinex-derivatives/quotes_SOLF0:USTF0_20251122
["timestamp","ask_amount","ask_price","bid_price","bid_amount"]
[1763847367179,25.38902321,126.21,126.18,3.33]
[1763847367688,25.38902321,126.21,126.18,3.35388026]
[1763847369282,25.38902321,126.21,126.18,0.02388026]
[1763847369487,1.67342321,126.19,126.18,0.02388026]
[1763847369784,1.67342321,126.19,126.14,3.13]
[1763847369988,16.58,126.18,126.14,3.13]
[1763847370491,7.1379,126.17,126.12,3.13]
[1763847370988,0.05681694,126.16,126.12,3.13]
[1763847371791,0.05681694,126.16,126.12,10.2705]
[1763847371987,0.05681694,126.16,126.13,3.13]
[1763847373684,16.63681694,126.16,126.13,3.13]
[1763847375783,0.05681694,126.16,126.14,3.13]
[1763847377079,0.05681694,126.16,126.13,3.13]
[1763847377685,7.19531694,126.16,126.13,3.13]
[1763847378588,0.05681694,126.16,126.13,3.13]
[1763847379190,0.05681694,126.16,126.11,4.80342321]
[1763847379491,0.05681694,126.16,126.12,3.13]
[1763847379691,7.19531694,126.16,126.12,3.13]
[1763847380694,0.05681694,126.16,126.12,3.13]
[1763847381389,0.05681694,126.16,126.13,3.13]
[1763847383995,1.67342321,126.15,126.11,3.13]
[1763847384381,8.81282321,126.15,126.11,3.13]
[1763847385089,1.67342321,126.13,126.08,3.13]
[1763847385288,0.05337425,126.12,126.08,3.13]
[1763847385494,1.67342321,126.11,126.08,3.13]
[1763847387691,0.05337425,126.12,126.08,3.13]
[1763847389701,7.1413,126.11,126.08,3.13]
[1763847390091,0.05337425,126.12,126.08,3.13]
[1763847390795,16.63337425,126.12,126.08,3.13]
[1763847391198,23.77417425,126.12,126.08,3.13]
[1763847395103,7.19417425,126.12,126.08,3.13]
[1763847395302,23.77417425,126.12,126.08,3.13]
[1763847396407,7.19417425,126.12,126.08,3.13]
[1763847396702,0.05337425,126.12,126.09,3.32]
[1763847397003,0.05777789,126.12,126.09,3.32]
[1763847397206,7.19847789,126.12,126.09,3.32]
[1763847397602,0.05777789,126.12,126.06,3.32]
[1763847398502,7.1413,126.11,126.06,10.464]
[1763847398807,7.1413,126.11,126.07,3.32]
[1763847402213,0.05777789,126.12,126.07,10.4632]
[1763847402415,0.05777789,126.12,126.08,3.23]
[1763847403112,0.05777789,126.12,126.05,8.81772321]
[1763847403413,0.05777789,126.12,126.06,3.23]
[1763847403610,0.05777789,126.12,126.06,10.3739]
[1763847403809,0.05777789,126.12,126.07,3.23]
[1763847404008,16.58,126.11,126.07,3.23]
[1763847405316,16.58,126.11,126.08,3.23]
[1763847407018,16.58,126.11,126.06,3.23]
[1763847407222,0.05059429,126.1,126.06,3.23]
[1763847408315,111.0541,126.15,126.06,3.23]
[1763847408316,111.0334,126.17,126.08,3.23]
[1763847408505,18.25342321,126.16,126.09,1.67342321]
[1763847408808,18.25342321,126.16,126.1,3.23]
[1763847409109,25.39212321,126.16,126.1,3.23]
[1763847409309,18.25342321,126.16,126.12,0.05059429]
[1763847409514,0.0580058,126.14,126.12,0.05059429]
[1763847409912,7.1976058,126.14,126.12,0.05059429]
[1763847412414,0.0580058,126.14,126.12,3.28059429]
[1763847416912,1.67342321,126.19,126.13,3.23]
[1763847417118,18.25342321,126.19,126.13,3.23]
[1763847417311,25.39052321,126.19,126.13,3.23]
[1763847417914,0.0594627,126.17,126.16,3.23]
[1763847420517,0.0594627,126.17,126.15,3.28346657]
[1763847423030,0.0594627,126.17,126.15,0.05346657]
[1763847425029,7.1973627,126.17,126.15,0.05346657]
[1763847425415,2.61810422,126.16,126.1,13.09773911]
[1763847425619,16.58,126.16,126.11,3.23]
[1763847425814,16.58,126.16,126.12,3.25]
[1763847426416,16.58,126.16,126.11,9.86773911]
[1763847426417,0.05882948,126.15,126.13,3.30513352]
[1763847431431,0.05882948,126.15,126.13,10.44513352]
[1763847431730,0.05882948,126.15,126.14,3.25]
[1763847433031,16.6,126.21,126.16,3.25]
[1763847433332,7.1362,126.2,126.16,3.25]
[1763847433932,0.05218943,126.19,126.17,3.30983943]
[1763847442737,7.1346,126.23,126.17,3.30983943]
[1763847442937,16.58,126.22,126.18,3.25]
[1763847443140,16.58,126.22,126.19,3.25]
[1763847443536,7.1339,126.24,126.19,3.25]
[1763847443935,0.05076695,126.23,126.21,3.25]
[1763847448744,0.05076695,126.23,126.21,10.3854]
[1763847448935,0.05076695,126.23,126.22,3.25]
[1763847454343,16.58,126.28,126.23,3.25]
[1763847455253,16.58,126.28,126.24,3.25]
[1763847455650,19.19810422,126.28,126.21,3.25]
[1763847455953,0.05204671,126.26,126.23,3.25149523]
[1763847456148,2.61810422,126.24,126.23,0.05149523]
[1763847456340,113.59300422,126.24,126.18,3.2]
[1763847456539,16.58,126.23,126.18,3.2]
[1763847456852,7.1356,126.21,126.18,3.2]
[1763847457245,7.18935327,126.21,126.18,3.25747393]
[1763847463151,7.18935327,126.21,126.18,0.05747393]
[1763847463856,7.18935327,126.21,126.18,3.08747393]
[1763847464351,0.05375327,126.21,126.18,3.08747393]
[1763847470049,0.05375327,126.21,126.2,3.03]
[1763847470253,2.61810422,126.25,126.2,3.03]
[1763847471158,0.05961593,126.24,126.21,3.08927245]
[1763847471954,0.05961593,126.24,126.21,0.05927245]
[1763847472160,2.61810422,126.23,126.21,0.05927245]
[1763847473158,9.75260422,126.23,126.21,0.05927245]
[1763847479762,7.1345,126.23,126.21,0.05927245]
[1763847480464,0.05961593,126.24,126.21,3.08927245]
[1763847480964,1.67471555,126.23,126.21,3.08927245]
[1763847481258,8.80951555,126.23,126.21,0.05927245]
[1763847481563,16.58,126.22,126.21,0.05927245]
[1763847484666,18.25471555,126.22,126.21,0.05927245]
[1763847489565,18.25471555,126.22,126.16,12.96773911]
[1763847489870,1.67471555,126.2,126.15,12.96773911]
[1763847490068,16.58,126.19,126.16,3.1]
[1763847490570,16.6309545,126.19,126.16,3.15677107]
[1763847491170,16.6309545,126.19,126.16,0.05677107]
[1763847492167,8.81221555,126.18,126.16,0.05677107]
[1763847492562,7.1392,126.15,126.12,3.1]
[1763847492768,16.58,126.14,126.12,3.1]
[1763847493368,8.81391555,126.15,126.12,3.1]
[1763847493571,16.58,126.14,126.12,3.15303298]
[1763847495976,16.58,126.14,126.12,0.05303298]
[1763847496875,16.58,126.14,126.12,3.15303298]
[1763847503574,16.58,126.14,126.12,0.05303298]
[1763847505276,23.7197,126.14,126.12,0.05303298]
[1763847509871,112.74591555,126.13,126.06,3.1]
[1763847510277,7.1419,126.1,126.06,3.1]
[1763847510578,23.7219,126.1,126.06,3.1]
[1763847510780,1.67471555,126.11,126.06,3.1]
[1763847510781,0.05172943,126.09,126.08,3.1]
[1763847510972,0.05345836,126.1,126.08,3.1]
[1763847512185,0.05345836,126.1,126.09,3.1]
[1763847512378,16.58,126.13,126.09,3.1]
[1763847513278,16.58,126.13,126.1,3.1]
[1763847513583,0.05490879,126.13,126.1,3.15428012]
[1763847515087,0.05490879,126.13,126.1,10.29598012]
[1763847516086,0.05490879,126.13,126.11,3.04]
[1763847517385,0.05490879,126.13,126.1,7.19598012]
[1763847517589,1.72962434,126.13,126.1,0.05428012]
[1763847518891,0.05490879,126.13,126.1,3.36428012]
[1763847519489,0.05490879,126.13,126.11,3.31]
[1763847520190,0.05490879,126.13,126.1,0.05428012]
[1763847521092,7.1407,126.12,126.1,0.05428012]
[1763847522183,16.6,126.11,126.1,0.05428012]
[1763847525184,7.1421,126.1,126.06,3.31]
[1763847526192,0.05666805,126.09,126.07,3.35927916]
[1763847529295,0.05666805,126.09,126.07,13.22701827]
[1763847529594,0.05666805,126.09,126.08,3.31]
[1763847532898,0.05666805,126.09,126.08,13.17773911]
[1763847534500,23.7407,126.12,126.09,3.31]
[1763847535000,23.7407,126.12,126.09,9.86773911]
[1763847535190,111.0474,126.16,126.09,3.31]
[1763847535392,1.67471555,126.14,126.1,3.31]
[1763847535588,0.05431482,126.13,126.11,0.05922179]
[1763847536098,7.1407,126.12,126.11,0.05922179]
[1763847538211,0.05431482,126.13,126.11,3.36922179]
[1763847538707,7.19441482,126.13,126.11,3.36922179]
[1763847540205,0.05431482,126.13,126.11,3.36922179]
[1763847540408,0.05431482,126.13,126.11,13.2369609]
[1763847540606,0.05431482,126.13,126.11,3.36922179]
[1763847541314,7.19451482,126.13,126.11,0.05922179]
[1763847541703,7.19451482,126.13,126.11,3.36922179]
[1763847543412,7.19451482,126.13,126.11,13.2369609]
[1763847543607,7.19451482,126.13,126.11,9.9269609]
[1763847544014,7.19451482,126.13,126.11,13.2369609]
[1763847544216,7.19451482,126.13,126.12,3.31]
[1763847544416,7.19451482,126.13,126.11,9.9269609]
[1763847544616,7.19451482,126.13,126.11,3.36922179]
[1763847544819,0.05431482,126.13,126.12,3.31]
[1763847545521,0.05431482,126.13,126.12,13.17773911]
[1763847550425,7.1383,126.17,126.13,3.1]
[1763847550719,2.62066694,126.19,126.15,3.1]
[1763847550720,16.6,126.18,126.15,3.1]
[1763847551420,16.6,126.18,126.15,3.15515375]
[1763847551626,16.65252084,126.18,126.15,3.15515375]
[1763847552123,23.78982084,126.18,126.15,3.15515375]
[1763847552426,7.18982084,126.18,126.15,3.15515375]
[1763847552617,0.05252084,126.18,126.15,3.15515375]
[1763847552822,0.05252084,126.18,126.15,13.02289286]
[1763847553018,0.05252084,126.18,126.16,3.1]
[1763847556529,0.05252084,126.18,126.16,12.96773911]
[1763847556722,0.05252084,126.18,126.17,3.1]
[1763847562628,0.05252084,126.18,126.15,3.15515375]
[1763847562927,0.05252084,126.18,126.15,0.05515375]
[1763847563130,113.70168778,126.18,126.15,0.05515375]
[1763847563528,16.6,126.17,126.15,0.05515375]
[1763847564233,23.7378,126.17,126.15,0.05515375]
[1763847568738,0.05252084,126.18,126.16,3.1]
[1763847569034,16.65252084,126.18,126.16,3.1]
[1763847570031,23.78982084,126.18,126.16,3.1]
[1763847571631,23.78982084,126.18,126.15,0.05515375]
[1763847571834,7.1379,126.17,126.15,0.05515375]
[1763847576635,7.1396,126.14,126.11,3.2]
[1763847576835,23.7396,126.14,126.11,3.2]
[1763847577639,23.7396,126.14,126.1,3.2]
[1763847577640,7.1401,126.13,126.1,3.2]
[1763847577943,7.19826527,126.13,126.1,3.2524586]
[1763847581446,7.1407,126.12,126.1,0.0524586]
[1763847581847,16.6,126.11,126.1,0.0524586]
[1763847585546,16.6,126.11,126.1,3.2224586]
[1763847588155,16.6,126.11,126.1,0.0524586]
[1763847595758,16.6,126.11,126.1,3.2224586]
[1763847596552,0.05816527,126.13,126.1,3.2224586]
[1763847596854,16.65816527,126.13,126.1,3.2224586]
[1763847598045,23.79826527,126.13,126.1,3.2224586]
[1763847600261,0.05816527,126.13,126.1,10.3641586]
[1763847600457,0.05816527,126.13,126.11,3.17]
[1763847601454,7.19826527,126.13,126.11,3.17]
[1763847605959,7.19826527,126.13,126.1,0.0524586]
[1763847607370,7.19826527,126.13,126.1,3.3324586]
[1763847610862,7.1408,126.12,126.1,0.0524586]
[1763847616067,0.05816527,126.13,126.1,3.3324586]
[1763847618075,0.05816527,126.13,126.1,13.20019771]
[1763847618274,0.05816527,126.13,126.11,3.28]
[1763847619069,0.05816527,126.13,126.11,13.14773911]
[1763847619386,0.05816527,126.13,126.12,3.28]
[1763847623279,0.05816527,126.13,126.12,13.14773911]
[1763847625974,0.05816527,126.13,126.12,20.28833911]
[1763847627281,0.05816527,126.13,126.12,13.14773911]
[1763847629770,0.05816527,126.13,126.12,9.86773911]
[1763847629976,0.05816527,126.13,126.12,13.14773911]
[1763847630282,0.05816527,126.13,126.1,13.20019771]
[1763847630587,8.87547342,126.13,126.1,13.20019771]
[1763847631883,7.19826527,126.13,126.1,13.20019771]
[1763847633479,0.05816527,126.13,126.1,9.92019771]
[1763847633783,0.05816527,126.13,126.11,3.28]
[1763847634587,0.05816527,126.13,126.11,13.14773911]
[1763847636686,0.05816527,126.13,126.12,3.19]
[1763847640092,0.05816527,126.13,126.12,13.05773911]
[1763847645298,0.05816527,126.13,126.12,3.19]
[1763847647095,16.58,126.16,126.12,13.08122352]
[1763847647399,16.58,126.16,126.14,3.15]
[1763847648001,16.6373057,126.16,126.14,3.20581862]
[1763847648200,23.7758057,126.16,126.14,3.20581862]
[1763847649702,23.7758057,126.16,126.14,0.05581862]
[1763847654704,0.0573057,126.16,126.14,3.20581862]
[1763847654910,16.6373057,126.16,126.14,3.20581862]
[1763847656310,16.6373057,126.16,126.15,3.15]
[1763847659810,0.0573057,126.16,126.15,3.15]
[1763847660012,16.6373057,126.16,126.15,3.15]
[1763847660213,0.0573057,126.16,126.15,3.15]
[1763847660407,111.003,126.21,126.16,3.15]
[1763847660408,1.67720815,126.21,126.16,3.15]
[1763847660606,118.34232741,126.25,126.17,3.15]
[1763847660807,1.67720815,126.23,126.19,3.15]
[1763847661114,16.58,126.22,126.19,3.15]
[1763847661615,0.05486853,126.22,126.19,3.20095635]
[1763847662002,0.05486853,126.22,126.2,3.15]
[1763847664112,0.05486853,126.22,126.19,0.05095635]
[1763847665206,7.1356,126.21,126.19,0.05095635]
[1763847665917,2.61644417,126.2,126.19,0.05095635]
[1763847666707,19.19644417,126.2,126.19,0.05095635]
[1763847667420,111.0183,126.19,126.15,3.26]
[1763847667618,111.0253,126.18,126.13,3.26]
[1763847667811,16.58,126.17,126.13,3.26]
[1763847668411,7.1388,126.16,126.14,0.0572925]
[1763847668618,7.1967104,126.16,126.14,3.3172925]
[1763847672611,0.0579104,126.16,126.14,3.3172925]
[1763847673113,0.0579104,126.16,126.14,0.0572925]
[1763847673317,7.1964104,126.16,126.14,0.0572925]
[1763847682622,7.1406,126.13,126.1,3.26]
[1763847682823,16.58,126.12,126.1,3.26]
[1763847683618,16.64059999,126.12,126.1,3.31607078]
[1763847684222,0.06059999,126.12,126.1,3.31607078]
[1763847684423,16.58,126.15,126.12,3.26]
[1763847685424,16.63275732,126.15,126.12,3.26]
[1763847686822,0.05275732,126.15,126.12,3.26]
[1763847687016,16.63275732,126.15,126.13,3.26]
[1763847687322,16.63275732,126.15,126.13,3.31452174]
[1763847687624,16.63275732,126.15,126.14,3.26]
[1763847689817,0.05275732,126.15,126.14,3.26]
[1763847691327,16.58,126.19,126.15,3.26]
[1763847692317,0.05183608,126.18,126.16,3.31290104]
[1763847694226,0.05183608,126.18,126.16,0.05290104]
[1763847694425,7.18923608,126.18,126.16,0.05290104]
[1763847701438,111.07713608,126.18,126.13,3.28]
[1763847702538,111.07713608,126.18,126.14,3.33366407]
[1763847704137,7.1387,126.16,126.14,3.33366407]
[1763847704339,16.58,126.15,126.14,3.33366407]
[1763847706641,16.58,126.15,126.14,13.22089868]
[1763847707137,16.58,126.16,126.14,3.33366407]
[1763847707336,16.58,126.16,126.14,13.22089868]
[1763847709939,16.58,126.17,126.16,3.28]
[1763847710236,16.58,126.17,126.15,9.88723461]
[1763847710442,16.58,126.17,126.15,13.16723461]
[1763847714142,23.7178,126.17,126.15,9.88723461]
[1763847714336,16.58,126.17,126.14,9.94089868]
[1763847714537,16.58,126.17,126.14,0.05366407]
[1763847715643,7.1384,126.16,126.14,0.05366407]
[1763847718447,16.58,126.16,126.14,13.22089868]
[1763847719146,16.63183608,126.18,126.15,3.28]
[1763847719541,16.63183608,126.18,126.15,13.16723461]
[1763847719949,23.76923608,126.18,126.15,9.88723461]
[1763847720344,16.63183608,126.18,126.16,3.28]
[1763847720545,16.63183608,126.18,126.15,13.16723461]
[1763847721350,23.76913608,126.18,126.15,13.16723461]
[1763847723245,0.05183608,126.18,126.16,3.28]
[1763847723451,0.05183608,126.18,126.17,13.16723461]
[1763847725747,0.05183608,126.18,126.17,3.28]
[1763847728154,0.05183608,126.18,126.17,13.14758136]
[1763847728355,0.05183608,126.18,126.17,3.28]
[1763847732461,7.1343,126.24,126.2,3.25]
[1763847732658,25.38957747,126.24,126.2,3.25]
[1763847733664,0.05160118,126.23,126.21,0.0599323]
[1763847733856,0.05160118,126.23,126.21,3.3099323]
[1763847736063,0.05160118,126.23,126.21,10.4454323]
[1763847736268,0.05160118,126.23,126.22,3.25]
[1763847738873,25.38737747,126.28,126.24,3.25]
[1763847739166,8.80607747,126.3,126.24,3.25]
[1763847739367,8.80607747,126.3,126.26,3.25]
[1763847739969,0.05331585,126.29,126.27,3.30581662]
[1763847745172,0.05331585,126.29,126.27,10.43771662]
[1763847745369,0.05331585,126.29,126.28,3.25]
[1763847746274,0.05331585,126.29,126.27,3.30581662]
[1763847750881,1.67527747,126.28,126.27,0.05581662]
[1763847751582,1.67527747,126.28,126.21,3.25]
[1763847751583,18.23527747,126.28,126.21,3.25]
[1763847752476,0.05471441,126.26,126.23,0.05393836]
[1763847752676,0.05471441,126.26,126.23,3.30393836]
[1763847753078,1.72999188,126.26,126.23,0.05393836]
[1763847754089,7.1334,126.25,126.23,0.05393836]
[1763847762990,16.56,126.24,126.23,0.05393836]
[1763847763195,18.28999188,126.26,126.23,3.33393836]
[1763847763981,0.05471441,126.26,126.23,3.33393836]
[1763847764186,16.61471441,126.26,126.23,3.33393836]
[1763847766692,16.61471441,126.26,126.23,0.05393836]
[1763847768096,16.61471441,126.26,126.24,3.28]
[1763847769196,0.05471441,126.26,126.24,3.28]
[1763847776594,0.05471441,126.26,126.25,3.28]
[1763847777295,7.1304,126.31,126.27,3.28]
[1763847777498,8.80567747,126.31,126.27,3.28]
[1763847778201,0.05206887,126.3,126.28,3.33137052]
[1763847778598,0.05206887,126.3,126.28,0.05137052]
[1763847778794,7.18266887,126.3,126.28,0.05137052]
[1763847780403,1.67527747,126.29,126.28,0.05137052]
[1763847780804,7.18266887,126.3,126.28,0.05137052]
[1763847781304,23.74266887,126.3,126.28,0.05137052]
[1763847782110,23.74266887,126.3,126.28,3.33137052]
[1763847782606,23.74266887,126.3,126.28,0.05137052]
[1763847783608,16.61206887,126.3,126.28,3.33137052]
[1763847784008,16.61206887,126.3,126.28,0.05137052]
[1763847785112,23.74266887,126.3,126.28,0.05137052]
[1763847786700,7.18266887,126.3,126.28,0.05137052]
[1763847786904,23.74266887,126.3,126.28,0.05137052]
[1763847787415,2.61395978,126.29,126.24,3.12]
[1763847788212,110.9397,126.28,126.22,3.12]
[1763847788407,0.05432814,126.26,126.24,0.05906277]
[1763847788708,16.61432814,126.26,126.24,0.05906277]
[1763847790113,23.74712814,126.26,126.24,0.05906277]
[1763847793310,0.05432814,126.26,126.24,3.17906277]
[1763847793511,16.61432814,126.26,126.24,3.17906277]
[1763847800218,0.05432814,126.26,126.25,3.12]
[1763847800422,0.05432814,126.26,126.25,12.98734934]
[1763847812032,0.05432814,126.26,126.25,9.86734934]
[1763847812732,0.05432814,126.26,126.24,13.04641211]
[1763847814948,7.18722814,126.26,126.24,9.92641211]
[1763847815248,7.18722814,126.26,126.24,0.05906277]
[1763847816842,23.74722814,126.26,126.24,0.05906277]
[1763847817543,7.18722814,126.26,126.24,0.05906277]
[1763847817842,23.74722814,126.26,126.24,3.22906277]
[1763847818643,7.18722814,126.26,126.24,3.22906277]
[1763847820241,7.1337,126.25,126.22,9.86734934]
[1763847820432,2.61395978,126.26,126.21,13.01734934]
[1763847820632,2.61395978,126.26,126.22,13.01734934]
[1763847820833,7.1336,126.25,126.22,3.15]
[1763847821040,16.56,126.24,126.22,3.15]
[1763847821343,16.61572988,126.24,126.22,3.20196572]
[1763847822248,23.74982988,126.24,126.22,0.05196572]
[1763847824836,26.36378966,126.24,126.22,0.05196572]
[1763847826132,16.61572988,126.24,126.22,3.20196572]
[1763847828144,0.05572988,126.24,126.22,3.20196572]
[1763847828345,16.61572988,126.24,126.22,3.20196572]
[1763847829442,0.05572988,126.24,126.22,3.20196572]
[1763847829647,16.56,126.29,126.23,3.15]
[1763847829849,16.56,126.29,126.25,3.15]
[1763847830147,110.9238,126.3,126.25,3.15]
[1763847830346,16.56,126.28,126.25,3.15]
[1763847834151,16.61564794,126.28,126.25,3.20711609]
[1763847834453,0.05564794,126.28,126.25,3.20711609]
[1763847834750,16.61564794,126.28,126.25,3.20711609]
[1763847837242,16.61564794,126.28,126.25,13.06521219]
[1763847837445,0.05564794,126.28,126.26,3.15]
[1763847837649,16.56,126.32,126.28,3.15]
[1763847837847,19.17395978,126.32,126.27,3.15]
[1763847838751,0.05216769,126.31,126.28,0.05289148]
[1763847839148,7.1306,126.3,126.28,0.05289148]
[1763847844459,16.56,126.29,126.28,0.05289148]
[1763847849058,0.05216769,126.31,126.28,3.29289148]
[1763847850053,0.05216769,126.31,126.28,10.42439148]
[1763847850261,0.05216769,126.31,126.29,3.24]
[1763847851159,0.05216769,126.31,126.29,10.3709]
[1763847851462,0.05216769,126.31,126.3,3.24]
[1763847853758,23.6884,126.34,126.3,7.1304]
[1763847853965,23.6884,126.34,126.31,3.24]
[1763847854467,16.56,126.34,126.31,3.24]
[1763847854766,16.61792599,126.34,126.31,3.29366669]
[1763847855060,0.05792599,126.34,126.32,3.24]
[1763847855269,0.05792599,126.34,126.31,0.05366669]
[1763847855566,1.67301684,126.33,126.31,0.05366669]
[1763847855764,8.80181684,126.33,126.31,0.05366669]
[1763847866676,25.36181684,126.33,126.31,0.05366669]
[1763847866874,0.05792599,126.34,126.31,3.29366669]
[1763847867976,1.67301684,126.38,126.33,3.24]
[1763847868170,1.67301684,126.41,126.33,3.24]
[1763847868372,18.23301684,126.41,126.33,3.24]
[1763847869083,0.05350783,126.38,126.36,3.29437136]
[1763847878483,0.05350783,126.38,126.37,3.15]
[1763847881889,0.05350783,126.38,126.36,0.05437136]
[1763847882790,0.05350783,126.38,126.36,3.06437136]
[1763847888803,0.05350783,126.38,126.36,10.19127136]
[1763847889002,0.05350783,126.38,126.37,3.01]
[1763847900208,1.67301684,126.43,126.39,3.01]
[1763847901010,1.67301684,126.43,126.4,3.01]
[1763847901310,1.72675905,126.43,126.4,3.06543625]
[1763847902111,8.84985905,126.43,126.4,3.06543625]
[1763847905110,7.1238,126.42,126.4,0.05543625]
[1763847905317,1.67301684,126.41,126.35,3.01]
[1763847905516,18.21301684,126.41,126.35,3.01]
[1763847905916,7.1254,126.39,126.35,3.01]
[1763847906107,1.67301684,126.39,126.35,3.01]
[1763847906308,0.05377082,126.38,126.36,0.05595415]
[1763847907117,7.17987082,126.38,126.36,0.05595415]
[1763847907317,1.67301684,126.37,126.36,0.05595415]
[1763847908819,7.17987082,126.38,126.36,0.05595415]
[1763847910721,16.54,126.37,126.36,0.05595415]
[1763847913322,16.54,126.37,126.31,3.22]
[1763847913522,19.15135565,126.37,126.31,3.22]
[1763847914320,7.1277,126.35,126.31,3.22]
[1763847914521,0.05438031,126.34,126.32,3.27796989]
[1763847916619,16.54,126.37,126.32,3.27796989]
[1763847916926,406.8026,126.44,126.32,3.27796989]
[1763847916927,2.61135565,126.42,126.34,3.22]
[1763847917122,16.54,126.41,126.34,3.22]
[1763847917427,7.1249,126.4,126.36,3.22]
[1763847917620,0.05461555,126.39,126.37,0.05448188]
[1763847920226,7.18021555,126.39,126.37,0.05448188]
[1763847926327,113.46275565,126.38,126.29,7.1305]
[1763847926627,16.54,126.37,126.3,3.22]
[1763847927232,0.05828671,126.35,126.32,3.27801251]
[1763847927427,7.18608671,126.35,126.32,3.27801251]
[1763847931931,7.1283,126.34,126.32,0.05801251]
[1763847932432,16.54,126.33,126.32,0.05801251]
[1763847934137,0.05828671,126.35,126.32,3.27801251]
[1763847934138,16.59828671,126.35,126.32,3.27801251]
[1763847935938,0.05828671,126.35,126.32,10.40711251]
[1763847936139,0.05828671,126.35,126.32,3.27801251]
[1763847937138,0.05828671,126.35,126.34,3.02]
[1763847939141,7.1253,126.4,126.35,3.32]
[1763847939437,23.6653,126.4,126.35,3.32]
[1763847940132,0.05978164,126.39,126.35,3.32]
[1763847940339,0.05978164,126.39,126.36,3.37887139]
[1763847941036,7.18528164,126.39,126.36,0.05887139]
[1763847941233,0.05978164,126.39,126.36,0.05887139]
[1763847942141,7.126,126.38,126.36,0.05887139]
[1763847949651,16.54,126.37,126.36,0.05887139]
[1763847951652,16.54,126.37,126.36,3.37887139]
[1763847951856,16.54,126.37,126.36,0.05887139]
[1763847952354,7.126,126.38,126.36,0.05887139]
[1763847952541,0.05978164,126.39,126.36,3.37887139]
[1763847954257,0.05978164,126.39,126.38,3.32]
[1763847955157,7.1231,126.44,126.39,3.32]
[1763847955359,23.6631,126.44,126.39,3.32]
[1763847956145,7.1216,126.46,126.4,3.32]
[1763847956356,0.06046162,126.43,126.4,3.37172262]
[1763847956650,0.05715569,126.43,126.4,3.37390267]
[1763847957061,0.05715569,126.43,126.41,7.1242]
[1763847957261,0.05715569,126.43,126.42,3.32]
[1763847959960,0.05715569,126.43,126.4,0.05390267]
[1763847960166,0.05715569,126.43,126.4,3.37390267]
[1763847965065,0.05715569,126.43,126.4,10.49850267]
[1763847965270,0.05715569,126.43,126.41,3.32]
[1763847966673,0.05715569,126.43,126.41,10.4441]
[1763847966968,0.05715569,126.43,126.42,3.25]
[1763847968472,16.54,126.47,126.43,3.25]
[1763847969174,16.54,126.47,126.41,3.25]
[1763847969472,0.05390076,126.45,126.43,3.30145798]
[1763847973964,0.05390076,126.45,126.44,3.25]
[1763847976576,8.78844929,126.49,126.45,3.25]
[1763847977678,0.06001522,126.48,126.46,3.30280099]
[1763847978577,0.06001522,126.48,126.46,10.42410099]
[1763847978776,16.54,126.52,126.47,3.25]
[1763847979682,23.6582,126.52,126.47,3.25]
[1763847979985,0.05646328,126.51,126.47,10.3708]
[1763847980878,0.05646328,126.51,126.48,3.25]
[1763847984083,0.05646328,126.51,126.48,10.3702]
[1763847986086,7.1167,126.55,126.5,3.25]
[1763847986390,1.66854929,126.56,126.5,3.25]
[1763847987087,8.78464929,126.56,126.5,10.3691]
[1763847987289,0.05523926,126.54,126.52,0.05360891]
[1763847987494,110.7294,126.52,126.45,3.25]
[1763847987688,1.66854929,126.48,126.45,3.25]
[1763847988401,1.66854929,126.48,126.42,3.25]
[1763847988699,1.72399388,126.46,126.44,0.05724268]
[1763847989895,8.84559388,126.46,126.44,0.05724268]
[1763847993095,7.1241,126.42,126.35,3.25]
[1763847993298,1.66854929,126.41,126.35,3.25]
[1763847994298,0.05182352,126.39,126.38,3.25]
[1763847996800,0.05182352,126.39,126.37,0.05454953]
[1763847997104,1.72037281,126.39,126.37,0.05454953]
[1763847997498,119.68627281,126.39,126.37,0.05454953]
[1763847997702,16.56,126.38,126.37,0.05454953]
[1763847998706,7.17752352,126.39,126.37,0.05454953]
[1763847998898,18.28037281,126.39,126.37,0.05454953]
[1763847999902,1.72037281,126.39,126.37,0.05454953]
[1763848001001,0.05182352,126.39,126.37,3.38454953]